fUSD/lending_fUSD_20241003
["ID","MTS","AMOUNT","RATE_DAILY","PERIOD"]
[339742473,1727921449716,-3490.68178325,0.00020892,2]
[339742474,1727921449725,-173.18979557,0.000209,2]
[339742475,1727921449737,-5800.0,0.000209,2]
[339742476,1727921449747,-6311.90757721,0.000209,2]
[339742477,1727921449758,-1242.30002128,0.000209,2]
[339742478,1727921449769,-444.24779552,0.000209,2]
[339742479,1727921449784,-773.9542217,0.000209,2]
[339742480,1727921449880,-223.44963493,0.000209,2]
[339742481,1727921449889,-531.49036397,0.000209,2]
[339742482,1727921449901,-170.79219064,0.000209,2]
[339742483,1727921449911,-310.3,0.00020912,2]
[339742484,1727921449921,-501.14680632,0.00020973,2]
[339742485,1727921449931,-106.90655142,0.00020973,2]
[339742486,1727921449942,-497.82396799,0.00020973,2]
[339742488,1727921449951,-500.0,0.00020973,2]
[339742489,1727921449961,-500.0,0.00020973,2]
[339742490,1727921449970,-1612.42,0.00020989,2]
[339742491,1727921449980,-2188.33,0.00020989,2]
[339742492,1727921449989,-500.0,0.00020989,2]
[339742493,1727921449998,-881.15535201,0.00020989,2]
[339742494,1727921450011,-361.855006,0.00020989,2]
[339742495,1727921450022,-674.79390853,0.00020989,2]
[339742496,1727921450035,-1143.44573346,0.00020989,2]
[339742497,1727921450045,-2434.08,0.00020989,2]
[339742498,1727921450054,-12139.37,0.00020989,2]
[339742499,1727921450064,-1230.48,0.00020989,2]
[339742500,1727921450074,-3385.43,0.00020989,2]
[339742501,1727921450083,-960.14,0.00020989,2]
[339742502,1727921450093,-2999.96,0.00020989,2]
[339742503,1727921450102,-629.38,0.00020989,2]
[339742504,1727921450111,-772.71,0.00020989,2]
[339742505,1727921450121,-914.0,0.00020989,2]
[339742506,1727921450131,-1801.73,0.00020989,2]
[339742507,1727921450140,-356.44069542,0.00020989,2]
[339742508,1727921450150,-671.95,0.00020989,2]
[339742509,1727921450159,-500.0,0.00020989,2]
[339742510,1727921450168,-500.0,0.00020989,2]
[339742511,1727921450177,-1339.3,0.00020989,2]
[339742512,1727921450186,-686.9,0.00020989,2]
[339742513,1727921450195,-5753.06,0.00020989,2]
[339742514,1727921450205,-1195.72,0.00020989,2]
[339742515,1727921450214,-3692.45,0.00020989,2]
[339742516,1727921450223,-500.0,0.00020989,2]
[339742517,1727921450233,-1773.36,0.00020989,2]
[339742518,1727921450242,-2958.8,0.00020989,2]
[339742519,1727921450251,-2049.97,0.00020989,2]
[339742520,1727921450262,-166.74486104,0.00020989,2]
[339742521,1727921450276,-1392.58,0.00020989,2]
[339742522,1727921450286,-500.0,0.00020989,2]
[339742523,1727921450295,-565.4200053,0.00020989,2]
[339742524,1727921450305,-3123.38,0.00020989,2]
[339742525,1727921450314,-1096.86,0.00020989,2]
[339742526,1727921450324,-1840.89,0.00020989,2]
[339742527,1727921450332,-10709.65,0.00020989,2]
[339742528,1727921450343,-1614.07,0.00020989,2]
[339742529,1727921450351,-980.38,0.00020989,2]
[339742530,1727921450361,-1889.05,0.00020989,2]
[339742531,1727921450371,-500.0,0.00020989,2]
[339742532,1727921450380,-500.0,0.00020989,2]
[339742533,1727921450389,-2747.65,0.00020989,2]
[339742534,1727921450402,-500.0,0.00020989,2]
[339742535,1727921450411,-500.0,0.00020989,2]
[339742536,1727921450420,-3363.35,0.00020989,2]
[339742537,1727921450429,-1719.99,0.00020989,2]
[339742538,1727921450438,-1321.13727011,0.00020997,2]
[339742539,1727921450450,-1000.0,0.00020997,2]
[339742540,1727921451361,-1123.49387014,0.00020997,2]
[339742541,1727921451371,-500.39441734,0.00020998,2]
[339742542,1727921451381,-286.44370565,0.00020999,2]
[339742543,1727921451390,-2294.13,0.00020999,2]
[339742544,1727921451400,-1441.61,0.00020999,2]
[339742545,1727921451409,-156.28363023,0.00020999,2]
[339742546,1727921451419,-166.5838412,0.00020999,2]
[339742547,1727921451428,-500.0,0.00020999,2]
[339742548,1727921451438,-2161.59,0.00020999,2]
[339742549,1727921451448,-501.09753742,0.00020999,2]
[339742550,1727921451457,-500.0,0.00020999,2]
[339742551,1727921451467,-500.0,0.00020999,2]
[339742552,1727921451476,-500.0,0.00020999,2]
[339742553,1727921451486,-999.76,0.00020999,2]
[339742554,1727921451495,-500.0,0.00020999,2]
[339742555,1727921451505,-500.0,0.00020999,2]
[339742556,1727921451514,-500.26916538,0.00020999,2]
[339742557,1727921451524,-1098.19,0.00020999,2]
[339742558,1727921451536,-896.32,0.00020999,2]
[339742559,1727921451545,-501.256737,0.00020999,2]
[339742560,1727921451555,-500.16865516,0.00020999,2]
[339742561,1727921451566,-1226.74,0.00020999,2]
[339742562,1727921451575,-260.44708132,0.00020999,2]
[339742563,1727921451587,-239.55291868,0.00020999,2]
[339742564,1727921451597,-1307.03608536,0.00020999,2]
[339742565,1727921451609,-266.48473556,0.00020999,2]
[339742566,1727921451621,-2735.70533876,0.00020999,2]
[339742567,1727921451632,-1529.47956354,0.00020999,2]
[339742568,1727921451643,-3895.21427678,0.00020999,2]
[339742569,1727921451653,-522.31089317,0.00020999,2]
[339742570,1727921451672,-129.20910683,0.00020999,2]
[339742571,1727921451682,-501.2630619,0.00020999,2]
[339742572,1727921451691,-639.04766931,0.00020999,2]
[339742573,1727921451702,-400.71233069,0.00020999,2]
[339742574,1727921451711,-824.22534311,0.00020999,2]
[339742575,1727921451723,-346.75713416,0.00020999,2]
[339742576,1727921451737,-984.43752273,0.00020999,2]
[339742577,1727921451746,-204.59166449,0.00020999,2]
[339742578,1727921451757,-441.84579361,0.00020999,2]
[339742579,1727921451767,-449.77739403,0.00020999,2]
[339742580,1727921451780,-151.85260597,0.00020999,2]
[339742581,1727921451789,-500.24368675,0.00020999,2]
[339742582,1727921451799,-765.46814603,0.00020999,2]
[339742583,1727921451810,-66.76185397,0.00020999,2]
[339742584,1727921451819,-1249.79,0.00020999,2]
[339742585,1727921451828,-511.09433453,0.00020999,2]
[339742586,1727921451838,-500.0,0.00020999,2]
[339742587,1727921451847,-712.72,0.00020999,2]
[339742588,1727921451857,-1728.73,0.00020999,2]
[339742589,1727921451867,-2744.95,0.00020999,2]
[339742590,1727921451876,-500.30397979,0.00020999,2]
[339742591,1727921451886,-830.41,0.00020999,2]
[339742592,1727921451896,-500.0,0.00020999,2]
[339742593,1727921451905,-1553.17,0.00020999,2]
[339742594,1727921451914,-500.0,0.00020999,2]
[339742595,1727921451923,-500.0,0.00020999,2]
[339742596,1727921451933,-500.9948913,0.00020999,2]
[339742597,1727921451942,-611.04,0.00020999,2]
[339742598,1727921451951,-1950.83,0.00020999,2]
[339742599,1727921451961,-500.0,0.00020999,2]
[339742600,1727921451970,-1671.8,0.00020999,2]
[339742601,1727921451979,-886.5,0.00020999,2]
[339742602,1727921451989,-500.0,0.00020999,2]
[339742603,1727921452001,-817.23,0.00020999,2]
[339742604,1727921452011,-2372.44,0.00020999,2]
[339742605,1727921452021,-501.083648,0.00020999,2]
[339742606,1727921452031,-4274.12,0.00020999,2]
[339742607,1727921452040,-990.34,0.00020999,2]
[339742608,1727921452050,-615.52,0.00020999,2]
[339742609,1727921452061,-503.8396717,0.00020999,2]
[339742610,1727921452071,-500.0,0.00020999,2]
[339742611,1727921452081,-979.35,0.00020999,2]
[339742612,1727921452091,-500.0,0.00020999,2]
[339742613,1727921452100,-500.0,0.00020999,2]
[339742614,1727921452109,-1069.69,0.00020999,2]
[339742615,1727921452119,-1186.87,0.00020999,2]
[339742616,1727921452130,-500.0,0.00020999,2]
[339742617,1727921452140,-500.0,0.00020999,2]
[339742618,1727921452150,-500.0,0.00020999,2]
[339742619,1727921452159,-371.39967209,0.00020999,2]
[339742620,1727921452169,-501.21276133,0.00020999,2]
[339742621,1727921452180,-500.0,0.00020999,2]
[339742622,1727921452190,-746.48,0.00020999,2]
[339742623,1727921452200,-500.0,0.00020999,2]
[339742624,1727921452209,-2700.54,0.00020999,2]
[339742625,1727921452218,-500.0,0.00020999,2]
[339742626,1727921452228,-500.0,0.00020999,2]
[339742627,1727921452237,-167.97662238,0.00020999,2]
[339742628,1727921452246,-2629.95,0.00020999,2]
[339742629,1727921452256,-995.09,0.00020999,2]
[339742630,1727921452265,-500.0,0.00020999,2]
[339742631,1727921452275,-450.48565989,0.00020999,2]
[339742632,1727921452289,-49.51434011,0.00020999,2]
[339742633,1727921452298,-500.0,0.00020999,2]
[339742634,1727921452308,-500.0,0.00020999,2]
[339742635,1727921452317,-500.0,0.00020999,2]
[339742636,1727921452326,-500.0,0.00020999,2]
[339742637,1727921452335,-500.0,0.00020999,2]
[339742638,1727921452345,-500.0,0.00020999,2]
[339742639,1727921452354,-500.0,0.00020999,2]
[339742640,1727921452363,-500.0,0.00020999,2]
[339742641,1727921452372,-1082.67,0.00020999,2]
[339742642,1727921452383,-500.0,0.00020999,2]
[339742643,1727921452393,-500.0,0.00020999,2]
[339742644,1727921452402,-500.0,0.00020999,2]
[339742645,1727921452412,-613.81216644,0.00020999,2]
[339742646,1727921452421,-954.69398811,0.00020999,2]
[339742647,1727921452434,-467.91601189,0.00020999,2]
[339742648,1727921452443,-113.1091218,0.00020999,2]
[339742649,1727921452455,-750.1708782,0.00020999,2]
[339742650,1727921452464,-81.9591218,0.00020999,2]
[339742651,1727921452475,-2748.2908782,0.00020999,2]
[339742652,1727921452485,-56.89453715,0.00020999,2]
[339742653,1727921452498,-636.73546285,0.00020999,2]
[339742654,1727921452507,-270.76453715,0.00020999,2]
[339742655,1727921452519,-229.23546285,0.00020999,2]
[339742656,1727921452529,-1068.22,0.00020999,2]
[339742657,1727921452540,-500.0,0.00020999,2]
[339742658,1727921452549,-500.0,0.00020999,2]
[339742659,1727921452558,-1317.02453715,0.00020999,2]
[339742660,1727921452569,-555.0,0.00020999,2]
[339742661,1727921452580,-2026.77504163,0.00020999,2]
[339742662,1727921452592,-508.07079341,0.00020999,2]
[339742663,1727921452620,-728.75,0.00020999,2]
[339742664,1727921452631,-915.26137407,0.00020999,2]
[339742665,1727921452642,-776.71636707,0.00020999,2]
[339742666,1727921452653,-1326.68,0.00020999,2]
[339742667,1727921452664,-10401.00682633,0.00020999,2]
[339742668,1727921452675,-2139.44623187,0.00020999,2]
[339742669,1727921452686,-360.08234564,0.00020999,2]
[339742670,1727921452697,-392.18531531,0.00020999,2]
[339742671,1727921452708,-797.50039743,0.00020999,2]
[339742672,1727921452719,-9057.52077009,0.00020999,2]
[339742673,1727921452729,-500.0,0.00020999,2]
[339742674,1727921452743,-500.0,0.00020999,2]
[339742675,1727921452752,-500.0,0.00020999,2]
[339742676,1727921452762,-500.0,0.00020999,2]
[339742677,1727921452771,-500.0,0.00020999,2]
[339742678,1727921452780,-500.0,0.00020999,2]
[339742679,1727921452792,-500.0,0.00020999,2]
[339742680,1727921452802,-500.0,0.00020999,2]
[339742681,1727921452811,-500.0,0.00020999,2]
[339742683,1727921452821,-263.02366734,0.00020999,2]
[339742684,1727921452831,-1148.67,0.00020999,2]
[339742685,1727921452841,-500.0,0.00020999,2]
[339742686,1727921452850,-158.56018765,0.00020999,2]
[339742687,1727921452859,-943.29,0.00020999,2]
[339742689,1727921452869,-676.5,0.00020999,2]
[339742690,1727921452878,-1175.67,0.00020999,2]
[339742691,1727921452888,-500.0,0.00020999,2]
[339742692,1727921452897,-1254.65,0.00020999,2]
[339742693,1727921452906,-559.67,0.00020999,2]
[339742694,1727921452915,-500.0,0.00020999,2]
[339742695,1727921452925,-500.0,0.00020999,2]
[339742696,1727921452935,-1065.73,0.00020999,2]
[339742697,1727921452945,-500.0,0.00020999,2]
[339742698,1727921452954,-1060.34,0.00020999,2]
[339742699,1727921452963,-5756.78,0.00020999,2]
[339742700,1727921452974,-1404.64,0.00020999,2]
[339742701,1727921452984,-500.0,0.00020999,2]
[339742702,1727921452995,-500.0,0.00020999,2]
[339742703,1727921453004,-500.0,0.00020999,2]
[339742704,1727921453014,-500.0,0.00020999,2]
[339742705,1727921453023,-2290.95,0.00020999,2]
[339742706,1727921453037,-500.0,0.00020999,2]
[339742707,1727921453046,-500.0,0.00020999,2]
[339742708,1727921453056,-2074.47,0.00020999,2]
[339742709,1727921453065,-500.0,0.00020999,2]
[339742710,1727921453074,-553.96,0.00020999,2]
[339742711,1727921453083,-2770.0,0.00020999,2]
[339742712,1727921453092,-500.0,0.00020999,2]
[339742713,1727921453102,-500.0,0.00020999,2]
[339742714,1727921453111,-500.0,0.00020999,2]
[339742715,1727921453121,-500.0,0.00020999,2]
[339742716,1727921453130,-627.46,0.00020999,2]
[339742717,1727921453139,-9862.44,0.00020999,2]
[339742718,1727921453149,-500.0,0.00020999,2]
[339742719,1727921453158,-500.0,0.00020999,2]
[339742720,1727921453167,-500.0,0.00020999,2]
[339742721,1727921453176,-500.0,0.00020999,2]
[339742722,1727921453185,-500.0,0.00020999,2]
[339742723,1727921453195,-500.0,0.00020999,2]
[339742724,1727921453204,-500.0,0.00020999,2]
[339742725,1727921453214,-500.0,0.00020999,2]
[339742726,1727921453224,-500.0,0.00020999,2]
[339742727,1727921453234,-500.0,0.00020999,2]
[339742728,1727921453244,-500.0,0.00020999,2]
[339742729,1727921453255,-500.0,0.00020999,2]
[339742730,1727921453266,-500.0,0.00020999,2]
[339742731,1727921453277,-500.0,0.00020999,2]
[339742732,1727921453287,-500.0,0.00020999,2]
[339742733,1727921453296,-629.02050594,0.00020999,2]
[339742734,1727921453305,-919.87,0.00020999,2]
[339742735,1727921453314,-500.0,0.00020999,2]
[339742736,1727921453325,-611.38,0.00020999,2]
[339742737,1727921453336,-500.0,0.00020999,2]
[339742738,1727921453344,-648.03,0.00020999,2]
[339742739,1727921453354,-569.88,0.00020999,2]
[339742740,1727921453363,-1301.28,0.00020999,2]
[339742741,1727921453372,-500.0,0.00020999,2]
[339742742,1727921453382,-500.0,0.00020999,2]
[339742743,1727921453391,-2774.47,0.00020999,2]
[339742744,1727921453400,-500.0,0.00020999,2]
[339742745,1727921453410,-500.0,0.00020999,2]
[339742746,1727921453704,-500.0,0.00020999,2]
[339742747,1727921453729,-561.58,0.00020999,2]
[339742748,1727921453744,-500.0,0.00020999,2]
[339742749,1727921453755,-613.61,0.00020999,2]
[339742750,1727921453767,-500.0,0.00020999,2]
[339742751,1727921453777,-1135.72,0.00020999,2]
[339742752,1727921453788,-500.0,0.00020999,2]
[339742753,1727921453797,-181.92962658,0.00020999,2]
[339742754,1727921453806,-500.0,0.00020999,2]
[339742755,1727921453816,-1636.44,0.00020999,2]
[339742756,1727921453826,-520.77972687,0.00020999,2]
[339742757,1727921453835,-500.0,0.00020999,2]
[339742758,1727921453845,-500.0,0.00020999,2]
[339742759,1727921453854,-782.48,0.00020999,2]
[339742760,1727921453863,-500.0,0.00020999,2]
[339742761,1727921453873,-500.0,0.00020999,2]
[339742762,1727921453882,-777.71,0.00020999,2]
[339742763,1727921453891,-534.52,0.00020999,2]
[339742764,1727921453900,-2265.6,0.00020999,2]
[339742765,1727921453910,-500.0,0.00020999,2]
[339742766,1727921453919,-1013.27,0.00020999,2]
[339742767,1727921453928,-500.0,0.00020999,2]
[339742768,1727921453937,-500.0,0.00020999,2]
[339742769,1727921453947,-500.0,0.00020999,2]
[339742770,1727921453956,-500.0,0.00020999,2]
[339742771,1727921453965,-500.0,0.00020999,2]
[339742772,1727921453974,-5469.11,0.00020999,2]
[339742773,1727921453983,-2500.0,0.00021,5]
[339742774,1727921453993,-252646.27931933,0.00021,7]
[339742776,1727921483400,1000.0,0.000128,2]
[339742777,1727921484033,1000.0,0.000128,2]
[339742778,1727921484337,1000.0,0.000128,2]
[339742779,1727921484623,1000.0,0.000128,2]
[339742780,1727921484919,1000.0,0.000128,2]
[339742781,1727921485945,1000.0,0.000128,2]
[339742782,1727921486116,1000.0,0.000128,2]
[339742783,1727921486724,1000.0,0.000128,2]
[339742784,1727921487035,1000.0,0.000128,2]
[339742786,1727921487356,1000.0,0.000128,2]
[339742788,1727921502990,154.33,0.00010959,2]
[339742830,1727921808953,-250.0,0.00016438,2]
[339742831,1727921808976,-150.0,0.00018,2]
[339742832,1727921808999,-285.72,0.00018078,2]
[339742833,1727921809020,-203.866,0.00019082,2]
[339742834,1727921809044,-500.0,0.00019178,2]
[339742835,1727921809067,-500.0,0.00019178,2]
[339742836,1727921809090,-610.55,0.00019178,2]
[339742837,1727921809112,-2003.59,0.00019178,2]
[339742838,1727921809134,-500.0,0.00019178,2]
[339742839,1727921809155,-500.0,0.00019178,2]
[339742840,1727921809176,-500.0,0.00019178,2]
[339742841,1727921809196,-500.0,0.00019178,2]
[339742842,1727921809217,-1404.02,0.00019178,2]
[339742843,1727921809237,-500.0,0.00019178,2]
[339742844,1727921809257,-500.0,0.00019178,2]
[339742845,1727921809278,-500.0,0.00019178,2]
[339742846,1727921809300,-500.0,0.00019178,2]
[339742847,1727921809320,-500.0,0.00019178,2]
[339742848,1727921809341,-500.0,0.00019178,2]
[339742849,1727921809368,-500.0,0.00019178,2]
[339742850,1727921809766,-3908.63,0.00019178,2]
[339742851,1727921809787,-1981.95,0.00019178,2]
[339742852,1727921809810,-695.65,0.00019178,2]
[339742853,1727921809831,-500.0,0.00019178,2]
[339742854,1727921809855,-500.0,0.00019178,2]
[339742855,1727921809878,-2450.71,0.00019178,2]
[339742856,1727921809900,-5157.77,0.00019178,2]
[339742857,1727921809921,-500.0,0.00019178,2]
[339742858,1727921809944,-1230.46,0.00019178,2]
[339742859,1727921809968,-500.0,0.00019178,2]
[339742860,1727921809988,-1058.62,0.00019178,2]
[339742861,1727921810009,-500.0,0.00019178,2]
[339742862,1727921810030,-505.77459336,0.00019178,2]
[339742863,1727921810053,-500.0,0.00019178,2]
[339742864,1727921810073,-1791.96,0.00019178,2]
[339742865,1727921810094,-500.0,0.00019178,2]
[339742866,1727921810114,-1005.98,0.00019178,2]
[339742867,1727921810134,-500.0,0.00019178,2]
[339742868,1727921810155,-500.0,0.00019178,2]
[339742869,1727921810176,-500.0,0.00019178,2]
[339742870,1727921810196,-922.29,0.00019178,2]
[339742871,1727921810217,-926.71,0.00019178,2]
[339742872,1727921810236,-500.0,0.00019178,2]
[339742873,1727921810256,-1883.2,0.00019178,2]
[339742874,1727921810276,-1269.98,0.00019178,2]
[339742875,1727921810297,-500.0,0.00019178,2]
[339742876,1727921810318,-500.0,0.00019178,2]
[339742877,1727921810337,-1109.6,0.00019178,2]
[339742878,1727921810360,-989.78,0.00019178,2]
[339742879,1727921810383,-2708.28,0.00019178,2]
[339742880,1727921810406,-500.0,0.00019178,2]
[339742881,1727921810431,-2714.5,0.00019178,2]
[339742882,1727921810452,-1224.27,0.00019178,2]
[339742883,1727921810472,-501.21039253,0.00019178,2]
[339742884,1727921810492,-300.0,0.00019178,2]
[339742885,1727921810512,-500.0,0.00019178,2]
[339742886,1727921810532,-500.0,0.00019178,2]
[339742887,1727921810558,-582.12178217,0.00019178,2]
[339742888,1727921810579,-589.57,0.00019178,2]
[339742889,1727921810600,-1494.54,0.00019178,2]
[339742890,1727921810621,-500.35298928,0.00019178,2]
[339742891,1727921810643,-500.0,0.00019178,2]
[339742892,1727921810663,-500.0,0.00019178,2]
[339742893,1727921810684,-500.0,0.00019178,2]
[339742894,1727921810704,-509.33,0.00019178,2]
[339742895,1727921810724,-500.0,0.00019178,2]
[339742896,1727921810744,-500.0,0.00019178,2]
[339742897,1727921810764,-1463.89,0.00019178,2]
[339742898,1727921810784,-500.0,0.00019178,2]
[339742899,1727921810808,-501.2138076,0.00019178,2]
[339742900,1727921810828,-667.89,0.00019178,2]
[339742901,1727921810851,-733.61,0.00019178,2]
[339742902,1727921810871,-2405.98,0.00019178,2]
[339742903,1727921810898,-861.11,0.00019178,2]
[339742904,1727921810919,-500.90690141,0.00019178,2]
[339742905,1727921810942,-1189.92,0.00019178,2]
[339742906,1727921810965,-842.06,0.00019178,2]
[339742907,1727921810987,-1492.38,0.00019178,2]
[339742908,1727921811012,-500.0,0.00019178,2]
[339742909,1727921811038,-545.24,0.00019178,2]
[339742910,1727921811063,-500.0,0.00019178,2]
[339742911,1727921811083,-572.02,0.00019178,2]
[339742912,1727921811105,-500.0,0.00019178,2]
[339742913,1727921811125,-598.4,0.00019178,2]
[339742914,1727921811147,-530.24,0.00019178,2]
[339742915,1727921811167,-500.0,0.00019178,2]
[339742916,1727921811187,-2252.62,0.00019178,2]
[339742917,1727921811207,-985.97,0.00019178,2]
[339742918,1727921811228,-650.73,0.00019178,2]
[339742919,1727921811248,-523.02018313,0.00019178,2]
[339742920,1727921811268,-1534.63,0.00019178,2]
[339742921,1727921811288,-500.0,0.00019178,2]
[339742922,1727921811310,-2430.04,0.00019178,2]
[339742923,1727921811330,-500.0,0.00019178,2]
[339742924,1727921811350,-500.0,0.00019178,2]
[339742925,1727921811370,-500.0,0.00019178,2]
[339742926,1727921811391,-501.31183082,0.00019178,2]
[339742927,1727921811411,-500.0,0.00019178,2]
[339742928,1727921811431,-500.0,0.00019178,2]
[339742929,1727921811451,-642.91707658,0.00019178,2]
[339742930,1727921811472,-500.0,0.00019178,2]
[339742931,1727921811493,-500.0,0.00019178,2]
[339742932,1727921811513,-500.0,0.00019178,2]
[339742933,1727921811534,-500.0,0.00019178,2]
[339742934,1727921811564,-1518.09,0.00019178,2]
[339742935,1727921811585,-500.0,0.00019178,2]
[339742936,1727921811608,-1158.96,0.00019178,2]
[339742937,1727921811630,-301.13860053,0.00019178,2]
[339742938,1727921811652,-202.78025246,0.00019178,2]
[339742939,1727921811673,-500.0,0.00019178,2]
[339742940,1727921811694,-1250.03,0.00019178,2]
[339742941,1727921811715,-500.0,0.00019178,2]
[339742942,1727921811736,-500.0,0.00019178,2]
[339742943,1727921811757,-500.0,0.00019178,2]
[339742944,1727921811778,-500.0,0.00019178,2]
[339742945,1727921811864,-500.0,0.00019178,2]
[339742946,1727921811888,-500.0,0.00019178,2]
[339742947,1727921811911,-500.0,0.00019178,2]
[339742948,1727921811933,-685.95,0.00019178,2]
[339742949,1727921811955,-520.67,0.00019178,2]
[339742950,1727921811976,-553.57,0.00019178,2]
[339742951,1727921811998,-500.0,0.00019178,2]
[339742952,1727921812020,-500.0,0.00019178,2]
[339742953,1727921812040,-500.0,0.00019178,2]
[339742954,1727921812063,-500.0,0.00019178,2]
[339742955,1727921812084,-1490.35,0.00019178,2]
[339742956,1727921812105,-500.0,0.00019178,2]
[339742957,1727921812128,-500.0,0.00019178,2]
[339742958,1727921812151,-500.0,0.00019178,2]
[339742959,1727921812173,-532.99,0.00019178,2]
[339742960,1727921812194,-500.0,0.00019178,2]
[339742961,1727921812214,-1318.1,0.00019178,2]
[339742962,1727921812235,-500.0,0.00019178,2]
[339742963,1727921812255,-500.0,0.00019178,2]
[339742964,1727921812275,-500.0,0.00019178,2]
[339742965,1727921812295,-875.43,0.00019178,2]
[339742966,1727921812317,-1246.86,0.00019178,2]
[339742967,1727921812338,-500.0,0.00019178,2]
[339742968,1727921812358,-500.0,0.00019178,2]
[339742969,1727921812379,-537.24,0.00019178,2]
[339742970,1727921812399,-689.35,0.00019178,2]
[339742971,1727921812420,-742.8,0.00019178,2]
[339742972,1727921812441,-954.44,0.00019178,2]
[339742973,1727921812463,-1847.83,0.00019178,2]
[339742974,1727921812483,-1422.75,0.00019178,2]
[339742975,1727921812504,-500.0,0.00019178,2]
[339742976,1727921812525,-500.0,0.00019178,2]
[339742977,1727921812546,-1390.04,0.00019178,2]
[339742978,1727921812567,-2004.82,0.00019178,2]
[339742979,1727921812587,-500.0,0.00019178,2]
[339742980,1727921812607,-682.54,0.00019178,2]
[339742981,1727921812628,-1443.35,0.00019178,2]
[339742982,1727921812649,-1327.59,0.00019178,2]
[339742983,1727921812669,-1537.62,0.00019178,2]
[339742984,1727921812691,-895.41,0.00019178,2]
[339742985,1727921812711,-500.0,0.00019178,2]
[339742986,1727921812732,-1273.56,0.00019178,2]
[339742987,1727921812752,-1754.76,0.00019178,2]
[339742988,1727921812772,-500.0,0.00019178,2]
[339742989,1727921812791,-1017.96,0.00019178,2]
[339742990,1727921812813,-500.0,0.00019178,2]
[339742991,1727921812834,-500.0,0.00019178,2]
[339742992,1727921812857,-500.0,0.00019178,2]
[339742993,1727921812877,-500.0,0.00019178,2]
[339742994,1727921812898,-500.0,0.00019178,2]
[339742995,1727921812919,-500.0,0.00019178,2]
[339742996,1727921812942,-500.0,0.00019178,2]
[339742997,1727921812962,-500.0,0.00019178,2]
[339742998,1727921812983,-500.0,0.00019178,2]
[339742999,1727921813004,-500.0,0.00019178,2]
[339743000,1727921813027,-539.7242072,0.00019178,2]
[339743001,1727921813050,-500.0,0.00019178,2]
[339743002,1727921813071,-500.0,0.00019178,2]
[339743003,1727921813092,-565.4,0.00019178,2]
[339743004,1727921813112,-500.0,0.00019178,2]
[339743005,1727921813132,-500.0,0.00019178,2]
[339743006,1727921813153,-500.0,0.00019178,2]
[339743007,1727921813173,-500.0,0.00019178,2]
[339743008,1727921813194,-1301.07,0.00019178,2]
[339743009,1727921813215,-1198.04,0.00019178,2]
[339743010,1727921813235,-1808.86,0.00019178,2]
[339743011,1727921813255,-833.37,0.00019178,2]
[339743012,1727921813276,-833.37,0.00019178,2]
[339743013,1727921813296,-833.37,0.00019178,2]
[339743014,1727921813318,-833.37,0.00019178,2]
[339743015,1727921813339,-833.37,0.00019178,2]
[339743016,1727921813359,-833.37,0.00019178,2]
[339743017,1727921813381,-833.37,0.00019178,2]
[339743018,1727921813401,-833.37,0.00019178,2]
[339743019,1727921813422,-833.37,0.00019178,2]